[Event "FIDE WYCC Open U14 2023"]
[Site "Montesilvano"]
[Date "2023.11.20"]
[Round "7.1"]
[White "Ermitsch, Magnus"]
[Black "Mamedov, Edgar"]
[Result "1-0"]
[ECO "B03"]
[WhiteElo "2206"]
[BlackElo "2234"]
[Annotator "RC"]
[PlyCount "143"]
[EventDate "2023.11.13"]
[EventType "swiss"]
[EventCountry "ITA"]
[SourceTitle "playchess.com"]
[Source "ChessBase"]
[SourceQuality "1"]
[TimeControl "40/5400+30:1800+30"]

1. e4 {[%emt 0:00:04]} Nf6 {[%emt 0:00:20]} 2. e5 {[%emt 0:01:23]} Nd5 {[%emt 0:00:08]} 3. d4 {[%emt 0:00:05]} d6 {[%emt 0:00:17]} 4. c4 {[%emt 0:00:48]} Nb6 {[%emt 0:00:11]} 5. exd6 {[%emt 0:00:07]} cxd6 {[%emt 0:00:13]} 6. Nc3 {[%emt 0:00:51]} g6 {[%emt 0:00:18]} 7. Be3 {[%emt 0:01:01]} Bg7 {[%emt 0:00:20]} 8. Rc1 {[%emt 0:00:19]} O-O {[%emt 0:00:34]} 9. b3 {[%emt 0:01:12]} e5 {[%emt 0:03:36]} 10. dxe5 {[%emt 0:00:16]} dxe5 {[%emt 0:00:07]} 11. Qxd8 {[%emt 0:00:06]} Rxd8 {[%emt 0:00:06]} 12. c5 {[%emt 0:00:07]} N6d7 {[%emt 0:00:06]} 13. Nf3 {[%emt 0:02:19]} Nc6 {[%emt 0:04:04]} 14. Bc4 {[%emt 0:05:38]} Na5 {[%emt 0:06:31]} 15. Be2 {[%emt 0:11:41]} Nc6 {[%emt 0:12:22]} 16. Ne4 {[%emt 0:04:39]} h6 {[%emt 0:08:01]} 17. Nd6 {[%emt 0:05:46]} Nf8 {[%emt 0:04:46]} 18. Bc4 {[%emt 0:07:12]} Be6 {[%emt 0:03:01]} 19. Nxb7 {[%emt 0:02:05]} Rdb8 {[%emt 0:02:12]} 20. Nd6 {[%emt 0:01:18]} Bxc4 {[%emt 0:13:17]} 21. Rxc4 {[%emt 0:01:19]} f5 {[%emt 0:00:05]} 22. O-O {[%emt 0:02:52]} Ne6 {[%emt 0:12:31]} 23. g4 {[%emt 0:08:30]} f4 {[%emt 0:08:25]} 24. Bd2 {[%emt 0:03:23]} a5 {[%emt 0:05:16]} 25. Bc3 {[%emt 0:03:51]} Ned4 {[%emt 0:07:19]} 26. Bxd4 {[%emt 0:05:01]} exd4 {[%emt 0:00:04]} 27. Re1 {[%emt 0:02:20]} Rb4 {[%emt 0:04:18]} 28. Re6 {[%emt 0:01:33]} d3 {[%emt 0:00:16]} 29. Kf1 {[%emt 0:02:03]} Kh7 {[%emt 0:03:03]} 30. g5 {[%emt 0:06:35]} a4 {[%emt 0:00:59]} 31. Rxb4 {[%emt 0:01:40]} Nxb4 {[%emt 0:00:04]} 32. Re4 {[%emt 0:00:23]} axb3 {[%emt 0:00:58]} 33. axb3 {[%emt 0:00:06]} Nd5 {[%emt 0:00:36]} 34. gxh6 {[%emt 0:04:48]} Bf6 {[%emt 0:01:15]} 35. Re8 {[%emt 0:02:59]} Ra1+ {[%emt 0:00:32]} 36. Kg2 {[%emt 0:01:15]} g5 {[%emt 0:01:09]} 37. h3 {[%emt 0:03:03]} Ra2 {[%emt 0:00:15]} 38. Ne4 {[%emt 0:02:06]} Kxh6 {[%emt 0:01:19]} 39. Re6 {[%emt 0:01:25]} Kg6 {[%emt 0:00:32]} 40. Rd6 {[%emt 0:00:00]} Kf5 {[%emt 0:00:00]} 41. Nfd2 {[%emt 0:06:23]} Ne3+ {[%emt 0:09:56]} 42. fxe3 {[%emt 0:02:02]} fxe3 {[%emt 0:00:31]} 43. Rxd3 {[%emt 0:02:01]} exd2 {[%emt 0:01:43]} 44. Kf3 {[%emt 0:00:51]} Be7 {[%emt 0:02:20]} 45. Nd6+ {[%emt 0:02:46]} Ke6 {[%emt 0:02:50]} 46. Ke2 {[%emt 0:13:26]} Rb2 {[%emt 0:03:57]} 47. Nc4 {[%emt 0:01:40]} Ra2 {[%emt 0:05:35]} 48. c6 {[%emt 0:01:06]} Ra7 {[%emt 0:00:07]} 49. Re3+ {[%emt 0:03:15]} Kd5 {[%emt 0:01:20]} 50. Kxd2 {[%emt 0:07:53]} Kxc6 {[%emt 0:00:17]} 51. Kd3 {[%emt 0:00:34]} Bd8 {[%emt 0:02:59]} 52. Re6+ {[%emt 0:01:16]} Kb5 {[%emt 0:02:32]} 53. Kc3 {[%emt 0:01:02]} Rh7 {[%emt 0:00:10]} 54. Re3 {[%emt 0:00:35]} Bf6+ {[%emt 0:00:17]} 55. Kd3 {[%emt 0:00:01]} Kb4 {[%emt 0:00:46]} 56. Kc2 {[%emt 0:00:34]} Rh4 {[%emt 0:01:58]} 57. Rg3 {[%emt 0:00:50]} Rf4 {[%emt 0:00:24]} 58. Nd2 {[%emt 0:00:31]} Kb5 {[%emt 0:00:37]} 59. Nf3 {[%emt 0:00:33]} Rf5 {[%emt 0:00:25]} 60. Nd2 {[%emt 0:00:31]} Rf2 {[%emt 0:01:12]} 61. Kd3 {[%emt 0:00:20]} Rf4 {[%emt 0:01:02]} 62. Ne4 {[%emt 0:00:21]} Kb4 {[%emt 0:00:29]} 63. Nxf6 {[%emt 0:00:39]} Rxf6 {[%emt 0:00:03]} 64. Ke4 {[%emt 0:00:04]} Rf1 {[%emt 0:00:56]} 65. Rxg5 {[%emt 0:01:05]} Kxb3 {[%emt 0:00:07]} 66. h4 {[%emt 0:00:10]} Kc4 {[%emt 0:00:48]} 67. h5 {[%emt 0:00:17]} Ra1 {[%emt 0:00:41]} 68. h6 {[%emt 0:00:39]} Rh1 {[%emt 0:00:10]} 69. Rg6 {[%emt 0:00:06]} Re1+ 70. Kf5 {[%emt 0:00:07]} Kd5 {[%emt 0:01:07]} 71. Kf6 {[%emt 0:01:06]} Re8 {[%emt 0:00:43]} 72. h7 {[%emt 0:00:14]} 1-0

[Event "FIDE WYCC Open U14 2023"]
[Site "Montesilvano"]
[Date "2023.11.20"]
[Round "7.2"]
[White "Banh Gia Huy"]
[Black "Rustamov, Rustam"]
[Result "*"]
[ECO "D02"]
[WhiteElo "2397"]
[BlackElo "2229"]
[Annotator "RC"]
[PlyCount "84"]
[EventDate "2023.11.13"]
[EventType "swiss"]
[EventCountry "ITA"]
[SourceTitle "playchess.com"]
[Source "ChessBase"]
[SourceQuality "1"]
[TimeControl "40/5400+30:1800+30"]

1. d4 {[%emt 0:00:07]} d5 {[%emt 0:00:08]} 2. Nf3 {[%emt 0:00:05]} Nf6 {[%emt 0:00:13]} 3. Bf4 {[%emt 0:00:06]} c5 {[%emt 0:00:23]} 4. e3 {[%emt 0:00:00]} Nc6 {[%emt 0:00:23]} 5. Nbd2 e6 {[%emt 0:01:28]} 6. c3 {[%emt 0:00:12]} Bd6 {[%emt 0:03:49]} 7. Bg3 {[%emt 0:00:06]} Qe7 {[%emt 0:00:47]} 8. Ne5 {[%emt 0:07:52]} Nd7 {[%emt 0:01:56]} 9. Bb5 {[%emt 0:08:00]} Bxe5 {[%emt 0:14:57]} 10. dxe5 {[%emt 0:00:09]} a6 {[%emt 0:00:03]} 11. Bxc6 {[%emt 0:00:12]} bxc6 {[%emt 0:00:03]} 12. Qa4 {[%emt 0:07:46]} Bb7 {[%emt 0:02:58]} 13. c4 {[%emt 0:00:28]} a5 {[%emt 0:02:06]} 14. Rc1 {[%emt 0:06:20]} O-O {[%emt 0:02:06]} 15. O-O {[%emt 0:01:01]} Nb6 {[%emt 0:02:38]} 16. Qc2 {[%emt 0:07:07]} Ba6 {[%emt 0:01:50]} 17. b3 {[%emt 0:00:12]} a4 {[%emt 0:00:46]} 18. Rfd1 {[%emt 0:01:58]} Rfc8 {[%emt 0:06:54]} 19. h3 {[%emt 0:07:46]} Qg5 {[%emt 0:04:04]} 20. Qc3 {[%emt 0:04:34]} Qg6 {[%emt 0:04:01]} 21. Bh4 {[%emt 0:01:56]} Nd7 {[%emt 0:04:24]} 22. Be7 {[%emt 0:04:45]} f6 {[%emt 0:00:52]} 23. Nf3 {[%emt 0:04:19]} Kf7 {[%emt 0:04:19]} 24. Bd6 {[%emt 0:00:36]} Qh5 {[%emt 0:00:31]} 25. Rd2 {[%emt 0:04:03]} f5 {[%emt 0:05:54]} 26. Ne1 {[%emt 0:05:42]} g5 {[%emt 0:01:28]} 27. Nd3 {[%emt 0:00:08]} g4 {[%emt 0:03:28]} 28. hxg4 {[%emt 0:04:08]} Qxg4 {[%emt 0:00:25]} 29. f3 {[%emt 0:07:55]} Qg3 {[%emt 0:02:09]} 30. Nxc5 {[%emt 0:01:26]} Nxc5 {[%emt 0:01:02]} 31. Bxc5 {[%emt 0:00:02]} Rg8 {[%emt 0:00:46]} 32. e4 {[%emt 0:02:48]} dxe4 {[%emt 0:06:02]} 33. fxe4 {[%emt 0:00:17]} Qxc3 {[%emt 0:01:13]} 34. Rd7+ {[%emt 0:01:27]} Kg6 {[%emt 0:00:09]} 35. exf5+ {[%emt 0:03:18]} Kxf5 {[%emt 0:00:09]} 36. Rxc3 {[%emt 0:00:05]} Rg4 {[%emt 0:00:56]} 37. Re3 {[%emt 0:05:15]} axb3 {[%emt 0:03:11]} 38. Rf7+ {[%emt 0:01:46]} Kg6 {[%emt 0:00:38]} 39. Rf6+ {[%emt 0:00:01]} Kg7 {[%emt 0:00:19]} 40. axb3 {[%emt 0:00:00]} Rd8 {[%emt 0:00:00]} 41. Ref3 {[%emt 0:09:35]} Rd1+ {[%emt 0:01:35]} 42. Kh2 {[%emt 0:01:17]} Rd2 {[%emt 0:00:25]} *

[Event "FIDE WYCC Open U14 2023"]
[Site "Montesilvano"]
[Date "2023.11.20"]
[Round "7.3"]
[White "Tabuenca Mendataurigoitia, Daniel"]
[Black "Dinh Nho Kiet"]
[Result "*"]
[ECO "B10"]
[WhiteElo "2383"]
[BlackElo "2253"]
[Annotator "RC"]
[PlyCount "86"]
[EventDate "2023.11.13"]
[EventType "swiss"]
[EventCountry "ITA"]
[SourceTitle "playchess.com"]
[Source "ChessBase"]
[SourceQuality "1"]
[TimeControl "40/5400+30:1800+30"]

1. e4 {[%emt 0:00:03]} c6 {[%emt 0:00:10]} 2. Nf3 {[%emt 0:00:12]} d5 {[%emt 0:00:08]} 3. d3 {[%emt 0:00:09]} dxe4 {[%emt 0:04:23]} 4. dxe4 {[%emt 0:00:38]} Qxd1+ {[%emt 0:00:16]} 5. Kxd1 {[%emt 0:00:01]} Bg4 {[%emt 0:00:24]} 6. Be2 {[%emt 0:00:22]} Nd7 {[%emt 0:00:15]} 7. Ne1 {[%emt 0:00:15]} Bxe2+ {[%emt 0:01:09]} 8. Kxe2 {[%emt 0:00:02]} e5 {[%emt 0:01:46]} 9. Nd3 {[%emt 0:00:47]} Bd6 {[%emt 0:01:53]} 10. Be3 {[%emt 0:01:49]} Ngf6 {[%emt 0:21:31]} 11. f3 {[%emt 0:00:59]} Ke7 {[%emt 0:00:57]} 12. a4 {[%emt 0:02:53]} Ne8 {[%emt 0:06:36]} 13. Nd2 {[%emt 0:02:46]} f6 {[%emt 0:06:21]} 14. Rhd1 {[%emt 0:10:30]} Bc7 {[%emt 0:03:39]} 15. a5 {[%emt 0:02:18]} Nd6 {[%emt 0:10:28]} 16. a6 {[%emt 0:04:52]} Bb6 {[%emt 0:10:43]} 17. axb7 {[%emt 0:20:48]} Nxb7 {[%emt 0:00:07]} 18. Ra6 {[%emt 0:07:52]} Rhc8 {[%emt 0:04:59]} 19. Rda1 {[%emt 0:03:19]} Nbc5 {[%emt 0:01:22]} 20. Nxc5 {[%emt 0:00:48]} Nxc5 {[%emt 0:00:07]} 21. R6a5 {[%emt 0:00:53]} Nd7 {[%emt 0:07:23]} 22. Bxb6 {[%emt 0:00:55]} Nxb6 {[%emt 0:00:01]} 23. Rxa7+ {[%emt 0:00:10]} Ke6 {[%emt 0:01:26]} 24. Nb3 {[%emt 0:02:26]} Rxa7 {[%emt 0:03:55]} 25. Rxa7 {[%emt 0:00:08]} Nd7 {[%emt 0:00:04]} 26. Na5 {[%emt 0:02:10]} Rb8 {[%emt 0:06:16]} 27. b3 {[%emt 0:02:17]} c5 {[%emt 0:00:58]} 28. Nc4 {[%emt 0:02:55]} Rb4 {[%emt 0:03:32]} 29. Ne3 {[%emt 0:01:06]} Rb8 {[%emt 0:01:37]} 30. Nd5 {[%emt 0:01:55]} h5 {[%emt 0:00:50]} 31. h4 {[%emt 0:04:40]} g6 {[%emt 0:01:49]} 32. g3 {[%emt 0:00:42]} g5 {[%emt 0:00:28]} 33. hxg5 {[%emt 0:00:18]} fxg5 {[%emt 0:00:01]} 34. Ra6+ {[%emt 0:00:10]} Kf7 {[%emt 0:00:12]} 35. Rh6 {[%emt 0:00:05]} Nf8 {[%emt 0:00:26]} 36. Rxh5 {[%emt 0:02:02]} Ne6 {[%emt 0:00:08]} 37. Kd3 {[%emt 0:01:25]} Kg6 {[%emt 0:00:56]} 38. Rh1 {[%emt 0:00:34]} Rf8 {[%emt 0:01:19]} 39. Ne7+ {[%emt 0:00:18]} Kf6 {[%emt 0:00:18]} 40. Nf5 {[%emt 0:00:00]} Rd8+ {[%emt 0:00:00]} 41. Ke3 {[%emt 0:04:46]} Nd4 {[%emt 0:01:54]} 42. Rh6+ {[%emt 0:01:11]} Kf7 {[%emt 0:00:05]} 43. Rh2 {[%emt 0:00:18]} Ra8 {[%emt 0:03:25]} *

[Event "FIDE WYCC Open U14 2023"]
[Site "Montesilvano"]
[Date "2023.11.20"]
[Round "7.4"]
[White "Ljepic, Andrej"]
[Black "Agasarov, Benik"]
[Result "1-0"]
[ECO "B40"]
[WhiteElo "2236"]
[BlackElo "2360"]
[Annotator "RC"]
[PlyCount "113"]
[EventDate "2023.11.13"]
[EventType "swiss"]
[EventCountry "ITA"]
[SourceTitle "playchess.com"]
[Source "ChessBase"]
[SourceQuality "1"]
[TimeControl "40/5400+30:1800+30"]

1. e4 {[%emt 0:00:02]} c5 {[%emt 0:00:06]} 2. Nf3 {[%emt 0:00:10]} e6 {[%emt 0:00:06]} 3. c3 {[%emt 0:00:15]} d5 {[%emt 0:00:13]} 4. exd5 {[%emt 0:00:24]} exd5 {[%emt 0:00:24]} 5. d4 {[%emt 0:00:09]} Nc6 {[%emt 0:00:13]} 6. Be3 {[%emt 0:02:56]} cxd4 {[%emt 0:02:35]} 7. Nxd4 {[%emt 0:00:10]} Nf6 {[%emt 0:00:42]} 8. Be2 {[%emt 0:00:40]} Bd6 {[%emt 0:00:29]} 9. O-O {[%emt 0:03:10]} O-O {[%emt 0:00:28]} 10. Nd2 {[%emt 0:02:56]} Re8 {[%emt 0:00:53]} 11. Re1 {[%emt 0:02:52]} h6 {[%emt 0:05:16]} 12. h3 {[%emt 0:01:40]} a6 {[%emt 0:02:43]} 13. Bd3 {[%emt 0:09:34]} Bc7 {[%emt 0:14:33]} 14. Qc2 {[%emt 0:06:17]} Qd6 {[%emt 0:07:11]} 15. Nf1 {[%emt 0:06:49]} Ne4 {[%emt 0:13:00]} 16. f3 {[%emt 0:05:46]} Nf6 {[%emt 0:03:12]} 17. Bf2 {[%emt 0:03:13]} Rxe1 {[%emt 0:01:51]} 18. Rxe1 {[%emt 0:00:17]} Bb6 {[%emt 0:01:10]} 19. Nb3 {[%emt 0:10:27]} Ne5 {[%emt 0:02:42]} 20. Bd4 {[%emt 0:06:11]} Nxd3 {[%emt 0:08:27]} 21. Qxd3 {[%emt 0:00:20]} Bd7 {[%emt 0:01:43]} 22. Bxb6 {[%emt 0:02:36]} Qxb6+ {[%emt 0:00:15]} 23. Qd4 {[%emt 0:00:12]} Qb5 {[%emt 0:01:39]} 24. Ne3 {[%emt 0:08:01]} a5 {[%emt 0:04:29]} 25. Qc5 {[%emt 0:03:25]} Qa4 {[%emt 0:01:14]} 26. Nd4 {[%emt 0:10:20]} Qxa2 {[%emt 0:09:59]} 27. Qb6 {[%emt 0:00:31]} Re8 {[%emt 0:01:22]} 28. Qxb7 {[%emt 0:01:33]} a4 {[%emt 0:00:08]} 29. Qb4 {[%emt 0:04:51]} Ra8 {[%emt 0:00:05]} 30. Ndc2 {[%emt 0:00:42]} Qb3 {[%emt 0:00:44]} 31. Qxb3 {[%emt 0:00:50]} axb3 {[%emt 0:00:05]} 32. Nd4 {[%emt 0:00:12]} Ra2 {[%emt 0:00:53]} 33. Rb1 {[%emt 0:01:25]} Ba4 {[%emt 0:00:14]} 34. Ne2 {[%emt 0:00:50]} Bb5 {[%emt 0:01:39]} 35. Nc1 {[%emt 0:00:26]} d4 {[%emt 0:00:15]} 36. cxd4 {[%emt 0:03:31]} Ra4 {[%emt 0:00:03]} 37. Nxb3 {[%emt 0:00:32]} Rb4 {[%emt 0:00:03]} 38. Nc5 {[%emt 0:00:19]} Rxd4 {[%emt 0:00:09]} 39. Rd1 {[%emt 0:00:20]} Rb4 {[%emt 0:01:42]} 40. Rd2 {[%emt 0:00:00]} h5 {[%emt 0:00:00]} 41. Kf2 {[%emt 0:04:47]} g6 {[%emt 0:01:22]} 42. b3 {[%emt 0:00:38]} Be8 {[%emt 0:01:59]} 43. Rd6 {[%emt 0:04:08]} Rb5 {[%emt 0:02:43]} 44. b4 {[%emt 0:00:15]} Kg7 {[%emt 0:00:19]} 45. Nc2 {[%emt 0:03:18]} Rb8 {[%emt 0:01:19]} 46. g4 {[%emt 0:03:11]} hxg4 {[%emt 0:01:05]} 47. hxg4 {[%emt 0:00:12]} Ra8 {[%emt 0:00:22]} 48. Kg3 {[%emt 0:01:42]} Bb5 {[%emt 0:10:51]} 49. Nd4 {[%emt 0:03:14]} Bf1 {[%emt 0:04:27]} 50. b5 {[%emt 0:02:46]} Ra2 {[%emt 0:00:07]} 51. b6 {[%emt 0:03:08]} Rb2 {[%emt 0:01:50]} 52. b7 {[%emt 0:00:50]} g5 {[%emt 0:01:00]} 53. Nf5+ {[%emt 0:00:19]} Kg6 {[%emt 0:00:05]} 54. Ne3 {[%emt 0:00:16]} Be2 {[%emt 0:00:21]} 55. Ne4 {[%emt 0:00:36]} Rxb7 {[%emt 0:00:21]} 56. Rxf6+ {[%emt 0:00:05]} Kh7 {[%emt 0:00:17]} 57. Nf5 {[%emt 0:00:18]} 1-0

[Event "FIDE WYCC Open U14 2023"]
[Site "Montesilvano"]
[Date "2023.11.20"]
[Round "7.5"]
[White "Daakshin Arun"]
[Black "Myagmarsuren, Evsuld"]
[Result "*"]
[ECO "D14"]
[WhiteElo "2342"]
[BlackElo "2150"]
[Annotator "RC"]
[PlyCount "58"]
[EventDate "2023.11.13"]
[EventType "swiss"]
[EventCountry "ITA"]
[SourceTitle "playchess.com"]
[Source "ChessBase"]
[SourceQuality "1"]
[TimeControl "40/5400+30:1800+30"]

1. d4 {[%emt 0:00:03]} d5 {[%emt 0:00:04]} 2. c4 {[%emt 0:00:05]} c6 {[%emt 0:00:01]} 3. Nc3 {[%emt 0:00:06]} Nf6 {[%emt 0:00:03]} 4. cxd5 {[%emt 0:00:16]} cxd5 {[%emt 0:00:05]} 5. Bf4 {[%emt 0:00:05]} Nc6 {[%emt 0:00:07]} 6. e3 {[%emt 0:00:04]} Bf5 {[%emt 0:00:28]} 7. Nf3 {[%emt 0:00:18]} e6 {[%emt 0:00:05]} 8. Qb3 {[%emt 0:00:03]} Bb4 {[%emt 0:00:08]} 9. Ne5 {[%emt 0:00:05]} Bxc3+ {[%emt 0:00:27]} 10. Qxc3 {[%emt 0:00:06]} Nxe5 {[%emt 0:00:19]} 11. Bxe5 {[%emt 0:00:06]} O-O {[%emt 0:00:09]} 12. Qb4 {[%emt 0:00:33]} Qb6 {[%emt 0:08:04]} 13. Qxb6 {[%emt 0:00:06]} axb6 {[%emt 0:00:05]} 14. Bxf6 {[%emt 0:00:05]} gxf6 {[%emt 0:00:10]} 15. Be2 {[%emt 0:00:02]} Rfc8 {[%emt 0:00:11]} 16. Bd1 {[%emt 0:00:31]} b5 {[%emt 0:02:42]} 17. Kd2 {[%emt 0:04:25]} Rc6 {[%emt 0:02:10]} 18. g4 {[%emt 0:09:53]} Bg6 {[%emt 0:00:55]} 19. h4 {[%emt 0:03:27]} Rac8 {[%emt 0:02:05]} 20. h5 {[%emt 0:05:51]} Bc2 {[%emt 0:02:40]} 21. Rc1 {[%emt 0:02:32]} Bxd1 {[%emt 0:01:05]} 22. Rhxd1 {[%emt 0:07:13]} Kf8 {[%emt 0:05:52]} 23. Rxc6 {[%emt 0:05:38]} Rxc6 {[%emt 0:00:06]} 24. f3 {[%emt 0:11:17]} Ke7 {[%emt 0:06:22]} 25. Rc1 {[%emt 0:02:47]} Rxc1 {[%emt 0:10:35]} 26. Kxc1 {[%emt 0:00:04]} e5 {[%emt 0:20:27]} 27. f4 {[%emt 0:13:56]} f5 {[%emt 0:03:23]} 28. g5 {[%emt 0:04:17]} exf4 {[%emt 0:00:27]} 29. exf4 {[%emt 0:00:16]} b4 {[%emt 0:12:26]} *

[Event "FIDE WYCC Open U14 2023"]
[Site "Montesilvano"]
[Date "2023.11.20"]
[Round "7.6"]
[White "Dotzer, Lukas"]
[Black "Yun, Hungi"]
[Result "*"]
[ECO "B90"]
[WhiteElo "2339"]
[BlackElo "1884"]
[Annotator "RC"]
[PlyCount "57"]
[EventDate "2023.11.13"]
[EventType "swiss"]
[EventCountry "ITA"]
[SourceTitle "playchess.com"]
[Source "ChessBase"]
[SourceQuality "1"]
[TimeControl "40/5400+30:1800+30"]

1. e4 {[%emt 0:00:02]} c5 {[%emt 0:00:14]} 2. Nf3 {[%emt 0:00:05]} d6 {[%emt 0:00:06]} 3. d4 {[%emt 0:00:06]} cxd4 {[%emt 0:00:04]} 4. Nxd4 {[%emt 0:00:08]} Nf6 {[%emt 0:00:08]} 5. Nc3 {[%emt 0:00:07]} a6 {[%emt 0:00:11]} 6. f3 {[%emt 0:00:29]} e6 {[%emt 0:02:03]} 7. Be3 {[%emt 0:00:14]} b5 {[%emt 0:00:10]} 8. Qd2 {[%emt 0:00:37]} Nbd7 {[%emt 0:00:19]} 9. g4 {[%emt 0:00:39]} b4 {[%emt 0:01:30]} 10. Na4 {[%emt 0:00:11]} h6 {[%emt 0:05:42]} 11. h4 {[%emt 0:03:26]} Bb7 {[%emt 0:08:39]} 12. Rg1 {[%emt 0:08:58]} g6 {[%emt 0:14:09]} 13. Qxb4 {[%emt 0:12:36]} Rb8 {[%emt 0:07:24]} 14. Qd2 {[%emt 0:01:42]} d5 {[%emt 0:08:36]} 15. g5 {[%emt 0:05:41]} hxg5 {[%emt 0:00:50]} 16. hxg5 {[%emt 0:01:02]} Nh5 {[%emt 0:01:06]} 17. exd5 {[%emt 0:12:31]} Bxd5 {[%emt 0:06:12]} 18. O-O-O {[%emt 0:13:46]} Bb4 {[%emt 0:07:07]} 19. c3 {[%emt 0:08:02]} Qa5 {[%emt 0:06:28]} 20. cxb4 {[%emt 0:07:34]} Qxa4 {[%emt 0:00:53]} 21. b3 {[%emt 0:01:59]} Qxb4 {[%emt 0:18:17]} 22. Qxb4 {[%emt 0:00:18]} Rxb4 {[%emt 0:00:02]} 23. Bxa6 {[%emt 0:01:09]} O-O {[%emt 0:01:10]} 24. Be2 {[%emt 0:07:00]} Ng7 {[%emt 0:05:35]} 25. Kb2 {[%emt 0:03:47]} Rfb8 {[%emt 0:02:17]} 26. f4 {[%emt 0:06:13]} Nc5 {[%emt 0:01:38]} 27. Nc2 {[%emt 0:04:36]} Re4 {[%emt 0:01:43]} 28. Bf3 {[%emt 0:00:58]} Rxe3 {[%emt 0:00:17]} 29. Bxd5 {[%emt 0:00:31]} *

[Event "FIDE WYCC Open U14 2023"]
[Site "Montesilvano"]
[Date "2023.11.20"]
[Round "7.7"]
[White "Haug, Havard"]
[Black "Goh, Zi Han"]
[Result "1-0"]
[ECO "B22"]
[WhiteElo "2223"]
[BlackElo "2333"]
[Annotator "RC"]
[PlyCount "147"]
[EventDate "2023.11.13"]
[EventType "swiss"]
[EventCountry "ITA"]
[SourceTitle "playchess.com"]
[Source "ChessBase"]
[SourceQuality "1"]
[TimeControl "40/5400+30:1800+30"]

1. e4 {[%emt 0:00:07]} c5 {[%emt 0:01:21]} 2. c3 {[%emt 0:00:07]} d5 {[%emt 0:02:01]} 3. exd5 {[%emt 0:00:03]} Qxd5 {[%emt 0:00:12]} 4. d4 {[%emt 0:00:04]} Nf6 {[%emt 0:00:17]} 5. Nf3 {[%emt 0:00:32]} e6 {[%emt 0:00:28]} 6. Na3 {[%emt 0:00:17]} a6 {[%emt 0:01:22]} 7. Nc4 {[%emt 0:00:40]} Nbd7 {[%emt 0:01:17]} 8. Be2 {[%emt 0:03:16]} cxd4 {[%emt 0:03:52]} 9. Nxd4 {[%emt 0:00:18]} Bc5 {[%emt 0:04:53]} 10. O-O {[%emt 0:03:18]} O-O {[%emt 0:02:02]} 11. Be3 {[%emt 0:07:41]} Ne5 {[%emt 0:15:51]} 12. Nxe5 {[%emt 0:05:38]} Qxe5 {[%emt 0:00:09]} 13. Bf3 {[%emt 0:00:28]} Qc7 {[%emt 0:11:00]} 14. Bg5 {[%emt 0:06:28]} Bd7 {[%emt 0:06:03]} 15. Bxf6 {[%emt 0:04:40]} gxf6 {[%emt 0:00:07]} 16. Qd2 {[%emt 0:00:14]} Kh8 {[%emt 0:16:22]} 17. Rad1 {[%emt 0:07:03]} Rad8 {[%emt 0:02:21]} 18. Qh6 {[%emt 0:03:02]} Be7 {[%emt 0:02:48]} 19. Rfe1 {[%emt 0:01:28]} Rg8 {[%emt 0:03:29]} 20. Nb3 {[%emt 0:05:24]} Rg6 {[%emt 0:03:32]} 21. Qe3 {[%emt 0:01:17]} Rg5 {[%emt 0:05:43]} 22. Rd3 {[%emt 0:04:27]} Re5 {[%emt 0:04:50]} 23. Qd2 {[%emt 0:00:42]} Rxe1+ {[%emt 0:00:13]} 24. Qxe1 {[%emt 0:00:01]} Bc8 {[%emt 0:04:58]} 25. Qd2 {[%emt 0:00:45]} Rxd3 {[%emt 0:01:18]} 26. Qxd3 {[%emt 0:00:01]} Qd6 {[%emt 0:02:22]} 27. Qc4 {[%emt 0:02:09]} Qd8 {[%emt 0:01:14]} 28. g3 {[%emt 0:00:41]} Kg8 {[%emt 0:02:01]} 29. Qf4 {[%emt 0:04:56]} Qd6 {[%emt 0:00:55]} 30. Qa4 {[%emt 0:09:36]} Kg7 {[%emt 0:01:24]} 31. Na5 {[%emt 0:02:52]} Qd2 {[%emt 0:01:00]} 32. Qc4 {[%emt 0:02:17]} Bd7 {[%emt 0:00:15]} 33. Bxb7 {[%emt 0:02:40]} Qxb2 {[%emt 0:00:35]} 34. Bc6 {[%emt 0:02:23]} Bxc6 {[%emt 0:00:25]} 35. Nxc6 {[%emt 0:00:02]} Bd6 {[%emt 0:00:30]} 36. Qg4+ {[%emt 0:00:28]} Kf8 {[%emt 0:00:22]} 37. Qd4 {[%emt 0:00:09]} Be7 {[%emt 0:00:49]} 38. Nxe7 {[%emt 0:03:08]} Kxe7 {[%emt 0:00:09]} 39. Qa7+ {[%emt 0:00:22]} Kf8 {[%emt 0:00:15]} 40. Qxa6 {[%emt 0:00:00]} Qxc3 {[%emt 0:00:00]} 41. Qa8+ {[%emt 0:02:25]} Kg7 {[%emt 0:02:09]} 42. a4 {[%emt 0:02:11]} f5 {[%emt 0:05:12]} 43. a5 {[%emt 0:01:51]} f4 {[%emt 0:01:26]} 44. gxf4 {[%emt 0:06:34]} Qc1+ {[%emt 0:02:42]} 45. Kg2 {[%emt 0:00:04]} Qxf4 {[%emt 0:00:41]} 46. Qf3 {[%emt 0:02:03]} Qa4 {[%emt 0:01:25]} 47. Qc3+ {[%emt 0:00:39]} Kf8 {[%emt 0:07:33]} 48. h3 {[%emt 0:02:12]} Qb5 {[%emt 0:02:59]} 49. Qa3+ {[%emt 0:00:32]} Ke8 {[%emt 0:00:59]} 50. a6 {[%emt 0:00:28]} Qg5+ {[%emt 0:06:02]} 51. Kf1 {[%emt 0:03:19]} Qb5+ {[%emt 0:00:15]} 52. Ke1 {[%emt 0:00:11]} Qe5+ {[%emt 0:00:48]} 53. Kf1 {[%emt 0:00:14]} Qb5+ {[%emt 0:00:37]} 54. Kg2 {[%emt 0:00:42]} Qg5+ {[%emt 0:00:32]} 55. Qg3 {[%emt 0:00:15]} Qb5 {[%emt 0:00:50]} 56. Qd6 {[%emt 0:01:01]} Qg5+ {[%emt 0:01:16]} 57. Kh2 {[%emt 0:00:27]} Qf5 {[%emt 0:02:12]} 58. Qb8+ {[%emt 0:03:25]} Kd7 {[%emt 0:00:47]} 59. Qb7+ {[%emt 0:01:04]} Ke8 {[%emt 0:00:28]} 60. Qc8+ {[%emt 0:00:32]} Ke7 {[%emt 0:00:05]} 61. Qc7+ {[%emt 0:00:09]} Ke8 {[%emt 0:00:44]} 62. f4 {[%emt 0:04:49]} Qd3 {[%emt 0:01:44]} 63. a7 {[%emt 0:00:32]} Qe2+ {[%emt 0:00:22]} 64. Kg3 {[%emt 0:00:06]} Qe1+ {[%emt 0:00:56]} 65. Kg4 {[%emt 0:02:03]} Qe2+ {[%emt 0:00:48]} 66. Kh4 {[%emt 0:02:22]} Qf2+ {[%emt 0:00:34]} 67. Kh5 {[%emt 0:00:19]} Qf3+ {[%emt 0:00:28]} 68. Kh6 {[%emt 0:00:12]} Qe4 {[%emt 0:00:36]} 69. Qc8+ {[%emt 0:01:26]} Ke7 {[%emt 0:00:04]} 70. Qg8 {[%emt 0:00:11]} Qd4 {[%emt 0:00:58]} 71. Qg5+ {[%emt 0:00:14]} f6 {[%emt 0:00:11]} 72. Qg7+ {[%emt 0:00:04]} Kd6 {[%emt 0:00:11]} 73. a8=Q {[%emt 0:00:18]} Qxf4+ {[%emt 0:00:04]} 74. Kxh7 {[%emt 0:00:08]} 1-0